bitfinex-derivatives/quotes_ETHF0:USTF0_20260204
["timestamp","ask_amount","ask_price","bid_price","bid_amount"]
[1770224185538,0.468,2133.1,2131.6,7.21390016]
[1770224185733,0.468,2133.1,2132.0,7.21390016]
[1770224185940,4.44744063,2133.1,2132.0,0.00528413]
[1770224186139,0.23485,2132.6,2130.6,7.21390016]
[1770224186440,0.23485,2132.6,2131.1,7.21390016]
[1770224186841,3.9741565,2132.7,2131.4,7.21390016]
[1770224187235,4.76110323,2133.1,2131.4,7.21790721]
[1770224187436,4.76110323,2133.1,2131.6,7.21390016]
[1770224187637,4.76110323,2133.1,2131.4,0.00400705]
[1770224187638,4.05830323,2132.9,2131.4,0.00400705]
[1770224187843,4.05830323,2132.4,2130.8,7.21390016]
[1770224188043,1.08034,2132.6,2130.8,7.21390016]
[1770224188044,5.37383323,2132.1,2130.8,7.21390016]
[1770224188342,4.29323323,2131.9,2129.8,7.21390016]
[1770224188642,4.29323323,2131.9,2130.0,7.21390016]
[1770224188838,4.29323323,2131.9,2130.3,7.21390016]
[1770224189341,4.06397859,2131.9,2130.6,7.21390016]
[1770224189836,3.99794708,2131.9,2130.3,7.21945888]
[1770224190041,3.99794708,2131.9,2130.5,7.21390016]
[1770224190042,0.00567536,2131.9,2130.5,7.21390016]
[1770224190444,0.00567536,2131.9,2130.9,7.21796469]
[1770224190740,0.00567536,2131.9,2130.9,7.21390016]
[1770224190935,0.00567536,2131.9,2131.1,7.21796469]
[1770224191140,0.00567536,2131.9,2130.3,0.00555872]
[1770224191141,4.343544,2133.0,2131.5,7.21390016]
[1770224191539,3.874544,2132.4,2130.7,7.21390016]
[1770224191736,3.874544,2132.2,2130.7,7.21390016]
[1770224191937,3.874544,2132.0,2130.7,7.21390016]
[1770224192437,0.00394198,2132.0,2131.2,7.21390016]
[1770224192941,0.469,2132.6,2131.6,7.21390016]
[1770224193140,0.469,2132.6,2130.6,1.31641]
[1770224193141,0.469,2132.6,2130.7,7.21390016]
[1770224193341,0.469,2132.6,2130.9,7.21390016]
[1770224193839,8.70862038,2132.5,2131.1,7.21390016]
[1770224194039,4.01262038,2132.5,2131.1,7.21390016]
[1770224195643,0.47236858,2132.6,2131.3,7.21390016]
[1770224196038,4.86233147,2132.6,2131.3,7.21390016]
[1770224196537,0.47236858,2132.6,2131.3,7.21390016]
[1770224197443,4.696,2132.5,2131.3,7.21796469]
[1770224197743,4.696,2132.5,2131.6,7.21390016]
[1770224197940,0.00336858,2132.6,2131.6,7.21796469]
[1770224198139,0.00336858,2132.6,2132.2,7.21390016]
[1770224198435,0.00336858,2132.6,2132.2,7.21843576]
[1770224198640,0.00336858,2132.6,2132.4,0.00406453]
[1770224198942,0.469,2132.8,2132.4,7.21796469]
[1770224199143,0.469,2133.4,2132.7,7.21390016]
[1770224199346,0.469,2133.4,2132.3,7.21390016]
[1770224199641,40.8,2133.3,2132.3,7.21796469]
[1770224199837,40.8,2133.3,2132.2,0.0045356]
[1770224199838,0.00582201,2133.3,2132.4,7.21390016]
[1770224200040,0.469,2133.4,2132.9,7.21390016]
[1770224200338,0.469,2133.9,2132.9,7.21390016]
[1770224200543,0.469,2133.9,2133.1,7.21390016]
[1770224201042,0.4749889,2133.9,2133.3,0.00406453]
[1770224201243,0.4749889,2133.9,2133.3,7.21390016]
[1770224201443,0.4749889,2133.9,2133.6,7.21390016]
[1770224201645,0.07333863,2133.9,2133.2,7.21390016]
[1770224202739,40.8,2134.3,2133.5,7.21390016]
[1770224203049,41.03467,2134.3,2133.0,7.21390016]
[1770224203442,5.20695068,2134.2,2133.0,7.21390016]
[1770224203644,5.20695068,2134.2,2132.2,0.0045356]
[1770224203645,0.0815851,2134.3,2132.3,7.21390016]
[1770224203943,0.00573932,2134.3,2132.8,7.21390016]
[1770224204139,40.8,2134.2,2132.8,7.21390016]
[1770224204345,40.8,2134.2,2133.3,7.21390016]
[1770224204535,0.00573932,2134.3,2133.3,7.21390016]
[1770224204741,0.00573932,2134.3,2133.3,7.21796469]
[1770224204936,40.8,2134.2,2133.3,7.21390016]
[1770224205138,40.8,2134.2,2132.3,7.21390016]
[1770224205339,40.8,2134.2,2132.7,7.21390016]
[1770224205539,45.98211184,2134.2,2132.9,7.21390016]
[1770224205736,4.94742184,2134.1,2132.9,7.21390016]
[1770224205940,45.98211184,2134.2,2132.9,7.21390016]
[1770224206145,0.23471,2133.9,2132.9,7.21390016]
[1770224206547,40.8,2134.2,2132.9,7.21390016]
[1770224206746,40.8,2134.2,2133.1,7.21390016]
[1770224207345,0.00573932,2134.3,2133.5,0.00406453]
[1770224207549,0.23456,2135.3,2133.6,7.21390016]
[1770224207746,0.469,2135.2,2133.6,7.94980016]
[1770224208048,0.469,2135.2,2133.9,7.21390016]
[1770224208547,40.8,2135.1,2134.1,7.21390016]
[1770224208742,40.80591228,2135.1,2134.1,7.21948489]
[1770224208939,40.80591228,2135.1,2134.4,7.21796469]
[1770224209242,0.00591228,2135.1,2134.4,7.21796469]
[1770224209447,0.00591228,2135.1,2134.1,0.00558473]
[1770224209448,0.00591228,2135.1,2134.6,7.21390016]
[1770224209944,0.00591228,2135.1,2134.8,7.21796469]
[1770224210147,0.00591228,2135.1,2134.8,7.21390016]
[1770224210347,0.00591228,2135.1,2135.0,0.00406453]
[1770224210749,0.469,2135.9,2135.2,0.00406453]
[1770224210945,0.469,2135.9,2135.0,7.21390016]
[1770224211248,0.469,2135.9,2135.3,7.21390016]
[1770224211747,41.38760427,2136.8,2135.3,7.21796469]
[1770224212051,0.469,2137.0,2135.8,7.21390016]
[1770224212242,6.88193882,2137.0,2135.8,7.21390016]
[1770224212440,7.19780524,2137.0,2134.8,7.21390016]
[1770224212644,7.19780524,2137.0,2135.0,7.21390016]
[1770224212645,6.64731882,2136.9,2135.0,7.21390016]
[1770224212841,0.2344,2136.7,2135.0,7.21982193]
[1770224213045,0.00554351,2136.9,2135.5,7.21390016]
[1770224213247,0.00554351,2136.9,2135.5,7.21796469]
[1770224213550,0.00554351,2136.9,2136.0,7.21390016]
[1770224213952,0.00554351,2136.9,2136.6,7.29548136]
[1770224214148,0.469,2137.7,2136.6,7.29988823]
[1770224214552,0.23433,2137.4,2136.2,7.29548136]
[1770224214753,0.23434,2137.3,2136.2,7.29548136]
[1770224215249,6.65472123,2137.2,2135.1,7.29548136]
[1770224215550,6.65972358,2137.2,2135.3,7.29548136]
[1770224215752,6.65972358,2137.2,2135.3,7.29954589]
[1770224215948,0.23935235,2137.2,2135.5,7.29548136]
[1770224216148,0.23935235,2137.2,2135.8,7.29548136]
[1770224217248,1.07818,2136.9,2135.8,7.29548136]
[1770224217552,40.8,2137.1,2135.1,0.00582103]
[1770224217553,0.469,2136.8,2135.4,7.29548136]
[1770224217753,0.469,2136.8,2135.7,7.29548136]
[1770224218152,0.469,2136.8,2135.9,7.5924422]
[1770224218349,6.93090209,2136.8,2135.5,7.58837767]
[1770224218653,0.23448,2136.1,2135.1,7.5941987]
[1770224219052,0.23448,2136.0,2134.7,7.58837767]
[1770224219352,1.07884,2135.6,2134.7,7.58837767]
[1770224219657,6.65549108,2135.7,2133.7,7.58837767]
[1770224219954,6.65550108,2135.6,2134.0,7.58837767]
[1770224220255,0.00439966,2135.6,2134.0,7.59602999]
[1770224220446,0.00439966,2135.6,2134.6,7.58837767]
[1770224220651,0.00439966,2135.6,2134.6,7.5924422]
[1770224220845,6.70437504,2134.8,2134.0,0.00358779]
[1770224221050,0.23464,2134.6,2133.6,0.7359]
[1770224221252,0.468,2134.7,2133.6,0.7359]
[1770224221447,0.468,2134.7,2133.9,7.58837767]
[1770224221650,0.468,2134.7,2133.6,0.7359]
[1770224221853,7.54907504,2134.6,2133.6,0.7359]
[1770224222050,0.468,2134.7,2133.6,8.33003808]
[1770224222349,6.46975504,2135.5,2134.0,7.58837767]
[1770224222555,0.468,2135.4,2134.2,7.58837767]
[1770224222752,40.8,2135.3,2134.2,7.58837767]
[1770224223050,0.23458,2135.1,2133.7,7.58837767]
[1770224223254,0.23458,2135.1,2133.7,7.5924422]
[1770224223457,0.23458,2135.1,2133.9,0.00406453]
[1770224223755,6.65950751,2135.1,2133.7,7.58837767]
[1770224223954,6.65950751,2135.1,2133.7,7.5924422]
[1770224224254,1.07912,2135.0,2133.7,7.5924422]
[1770224224455,6.65953751,2134.8,2133.6,8.33003808]
[1770224224650,40.8,2135.3,2134.0,0.00406453]
[1770224224953,40.8,2135.3,2134.1,7.58837767]
[1770224225152,6.419893,2135.0,2133.7,7.58837767]
[1770224225456,83.26658427,2135.3,2134.3,7.58837767]
[1770224225457,40.8,2135.3,2134.3,7.58837767]
[1770224225852,40.8,2135.3,2134.3,7.5924422]
[1770224226652,6.654463,2135.2,2133.9,7.58837767]
[1770224226852,40.8,2135.3,2134.1,0.00406453]
[1770224227159,40.8,2135.3,2134.2,7.5924422]
[1770224227360,6.3971358,2135.2,2133.8,7.58837767]
[1770224227659,0.23457,2135.2,2134.0,7.58837767]
[1770224227859,0.23457,2135.2,2134.0,7.5924422]
[1770224228055,0.23457,2135.2,2134.2,7.5924422]
[1770224228257,0.23457,2135.2,2134.2,7.58837767]
[1770224228459,40.8,2135.3,2133.6,0.74166041]
[1770224228460,40.8,2135.3,2134.4,7.58837767]
[1770224228656,40.8,2135.3,2134.6,0.00406453]
[1770224228859,0.46317897,2135.3,2134.9,7.58837767]
[1770224229053,0.47339966,2135.6,2135.2,7.5924422]
[1770224229253,41.03454,2135.5,2134.3,7.58837767]
[1770224229457,41.03454,2135.5,2134.5,7.58837767]
[1770224229660,4.696,2135.7,2134.5,7.58837767]
[1770224229862,5.2552618,2136.7,2134.9,7.58837767]
[1770224230158,40.8,2136.6,2135.1,7.58837767]
[1770224230356,0.469,2137.1,2135.6,7.58837767]
[1770224230558,0.469,2137.1,2135.6,10.34704739]
[1770224230757,0.08145276,2137.9,2135.6,10.34704739]
[1770224230758,0.55045276,2137.9,2135.9,7.58837767]
[1770224230963,48.13351915,2137.8,2136.0,7.58837767]
[1770224231157,1.07782,2137.6,2136.0,7.58837767]
[1770224231361,0.23432,2137.5,2136.0,7.58837767]
[1770224231963,0.00598956,2137.5,2136.0,7.58837767]
[1770224232964,0.00598956,2137.5,2136.0,10.35312901]
[1770224233166,0.00598956,2137.5,2136.2,10.35312901]
[1770224233361,0.00598956,2137.5,2136.2,7.58837767]
[1770224235365,0.468,2137.7,2136.4,7.58837767]
[1770224235865,0.468,2137.7,2136.4,10.35312901]
[1770224236066,0.468,2137.7,2136.5,7.58837767]
[1770224236567,0.468,2137.7,2136.7,7.58837767]
[1770224236767,0.47296945,2137.7,2136.7,7.58837767]
[1770224241066,0.468,2139.1,2136.8,7.58837767]
[1770224241364,7.30729535,2138.7,2137.3,7.58837767]
[1770224241571,7.22587241,2138.5,2137.3,7.58837767]
[1770224241770,7.46008241,2138.5,2137.3,7.58837767]
[1770224241969,7.46455688,2138.5,2137.3,7.59289217]
[1770224242171,7.46455688,2138.5,2137.3,0.0045145]
[1770224242675,0.23428,2137.9,2136.9,7.58837767]
[1770224242873,0.468,2137.8,2136.6,8.52437767]
[1770224243165,8.24722062,2137.6,2136.6,0.936]
[1770224243366,7.40374062,2137.4,2136.6,0.936]
[1770224243568,7.40377062,2137.1,2135.9,7.58837767]
[1770224243768,4.696,2137.9,2135.9,7.5919457]
[1770224243969,0.45,2140.4,2138.3,1.07744]
[1770224244271,0.45,2140.4,2138.6,2.75748225]
[1770224244568,0.45,2140.4,2138.8,2.75748225]
[1770224244767,8.22638034,2140.4,2138.5,2.75748225]
[1770224244970,7.66764502,2140.2,2138.9,0.935]
[1770224245168,12.6988476,2139.4,2138.2,0.21747063]
[1770224245364,8.13564502,2139.3,2137.8,0.21747063]
[1770224245570,8.13564502,2139.3,2137.4,0.21747063]
[1770224245766,7.66764502,2139.1,2137.4,0.21747063]
[1770224246166,0.468,2139.3,2137.4,0.2211733]
[1770224246472,0.468,2139.3,2137.6,0.21747063]
[1770224246675,0.468,2139.3,2137.7,0.21747063]
[1770224246873,0.468,2139.3,2137.9,0.21747063]
[1770224247265,7.61655586,2140.1,2137.9,0.21747063]
[1770224247466,0.468,2140.0,2138.1,0.33749029]
[1770224247768,40.8,2139.9,2138.1,0.33749029]
[1770224247973,40.8,2139.9,2138.2,0.33749029]
[1770224248473,0.468,2140.0,2138.3,0.33749029]
[1770224248669,0.468,2140.0,2138.4,0.33749029]
[1770224248869,0.468,2140.0,2138.5,0.33749029]
[1770224249078,0.468,2140.0,2138.6,0.41373954]
[1770224249373,7.61655586,2139.8,2138.6,0.41373954]
[1770224249568,12.6988476,2139.4,2137.9,0.41373954]
[1770224249768,7.61655586,2139.8,2137.9,0.41373954]
[1770224249974,7.61655586,2139.7,2137.9,0.41373954]
[1770224250170,20.31540346,2139.7,2137.9,0.41373954]
[1770224250377,7.61655586,2139.4,2137.9,0.41373954]
[1770224250576,20.31540346,2139.4,2137.9,0.41373954]
[1770224250776,12.6988476,2139.3,2137.9,0.41373954]
[1770224250977,7.61655586,2139.4,2137.9,0.41373954]
[1770224251379,7.85062586,2139.7,2137.9,0.41373954]
[1770224251673,7.61655586,2139.6,2137.9,0.41373954]
[1770224251872,7.61655586,2139.3,2137.9,0.41373954]
[1770224252079,7.61655586,2139.0,2137.5,1.35609161]
[1770224252277,0.468,2138.9,2137.6,0.42049161]
[1770224252484,0.47360322,2138.9,2137.6,0.42049161]
[1770224252880,0.47360322,2138.9,2137.7,0.4576583]
[1770224253385,0.01594492,2138.9,2137.8,2.75748225]
[1770224253584,0.01594492,2138.9,2137.9,5.48638597]
[1770224253785,0.468,2139.6,2137.9,2.75748225]
[1770224253986,0.468,2139.6,2138.1,2.75748225]
[1770224254180,0.468,2139.6,2138.2,8.24327277]
[1770224254384,0.468,2139.6,2138.3,8.24327277]
[1770224254683,0.468,2139.6,2138.3,2.75748225]
[1770224254883,12.6988476,2139.4,2138.2,2.75748225]
[1770224255081,12.6988476,2139.5,2138.2,2.75748225]
[1770224255278,12.6988476,2139.5,2138.3,2.75748225]
[1770224255486,12.6988476,2139.4,2138.1,2.75748225]
[1770224255687,20.47522794,2139.5,2138.1,2.75748225]
[1770224255984,0.47404586,2139.6,2138.1,2.75748225]
[1770224255985,7.77638034,2139.4,2138.1,2.75748225]
[1770224256178,12.6988476,2139.3,2138.0,2.75748225]
[1770224256382,0.47404586,2139.6,2138.0,2.75748225]
[1770224256682,0.47404586,2139.6,2138.3,2.75748225]
[1770224256883,20.9492738,2139.6,2138.2,2.75748225]
[1770224257182,12.6988476,2139.2,2138.1,2.75748225]
[1770224257377,10.79167269,2138.6,2138.1,8.27258721]
[1770224257582,10.79167269,2138.6,2138.1,2.75748225]
[1770224257783,7.77638034,2139.2,2137.9,2.75748225]
[1770224258081,12.6988476,2138.6,2137.7,2.75748225]
[1770224258287,7.77638034,2138.4,2137.5,0.9356]
[1770224258488,7.77638034,2138.4,2137.5,6.44488924]
[1770224258789,0.468,2138.5,2137.6,5.50893004]
[1770224258988,0.468,2138.5,2137.7,8.26641229]
[1770224259189,0.468,2138.5,2137.9,2.75748225]
[1770224259380,0.468,2138.5,2136.7,5.51496451]
[1770224259381,14.67909482,2137.7,2136.7,5.51496451]
[1770224259581,8.24438034,2137.6,2136.2,5.51496451]
[1770224259790,8.24438034,2137.6,2136.3,5.48068232]
[1770224259991,7.77638034,2137.1,2136.4,5.48068232]
[1770224260188,7.77638034,2137.1,2135.8,5.51496451]
[1770224260384,7.77638034,2136.8,2135.4,5.51496451]
[1770224260592,0.468,2136.7,2135.5,5.19397189]
[1770224260887,7.77638034,2136.4,2135.4,0.00521307]
[1770224261087,15.14709482,2136.7,2135.5,5.19429767]
[1770224261289,6.90271448,2136.4,2135.4,0.00521307]
[1770224261491,6.90271448,2136.5,2135.4,0.00521307]
[1770224261796,6.90271448,2136.6,2135.5,5.18976327]
[1770224261997,8.24438034,2136.7,2135.5,5.18976327]
[1770224262205,6.90271448,2136.6,2135.4,0.00521307]
[1770224262993,6.90271448,2136.5,2135.4,5.19245924]
[1770224263189,6.90271448,2136.5,2135.4,0.08476495]
[1770224263488,6.90271448,2136.2,2135.4,0.00521307]
[1770224263889,14.63931888,2135.8,2135.4,0.00521307]
[1770224264094,6.90271448,2136.0,2135.4,0.00521307]
[1770224264292,14.63931888,2136.0,2135.4,0.00521307]
[1770224264497,6.90271448,2135.8,2135.4,0.00521307]
[1770224264692,7.7366044,2136.4,2135.4,0.00521307]
[1770224264896,7.74370865,2136.3,2135.4,0.00521307]
[1770224265096,6.90271448,2136.2,2135.4,0.00521307]
[1770224265300,6.90271448,2136.1,2135.4,0.00521307]
[1770224265593,6.90271448,2136.0,2135.4,0.00521307]
[1770224265799,6.90271448,2136.1,2135.4,0.00521307]
[1770224266301,6.90271448,2136.0,2135.4,0.00521307]
[1770224266498,6.90271448,2136.1,2135.4,0.00521307]
[1770224266998,6.90271448,2136.0,2135.4,0.00521307]
[1770224267191,6.90271448,2136.1,2135.4,0.00521307]
[1770224267498,6.90271448,2135.8,2134.7,5.22103394]
[1770224267801,7.75193498,2136.1,2134.8,5.17214322]
[1770224268000,7.75193498,2136.1,2134.7,0.04889072]
[1770224268198,7.75193498,2135.7,2134.5,5.16882501]
[1770224268403,7.75193498,2135.3,2134.0,0.04889072]
[1770224268694,7.75699141,2135.3,2134.0,0.05458041]
[1770224269493,6.90271448,2135.2,2134.0,0.05458041]
[1770224269694,7.75699141,2135.3,2134.0,0.05458041]
[1770224269895,7.73685857,2134.9,2134.0,0.00568969]
[1770224270201,7.73685857,2134.9,2133.3,0.07904353]
[1770224270597,7.741915,2135.3,2133.4,0.07904353]
[1770224270896,7.741915,2135.3,2133.5,0.07904353]
[1770224271203,7.741915,2135.3,2133.6,0.15486566]
[1770224271399,14.64462948,2135.3,2133.7,0.15486566]
[1770224271699,7.741915,2135.3,2133.8,0.15486566]
[1770224272098,0.00505643,2135.3,2133.8,0.15486566]
[1770224272495,0.00505643,2135.3,2133.9,0.38957566]
[1770224272800,0.00505643,2135.3,2133.9,0.23471]
[1770224273094,0.23445,2136.3,2134.3,0.42273553]
[1770224273095,0.468,2135.9,2134.3,0.42273553]
[1770224273495,7.61655586,2136.5,2134.5,1.50210553]
[1770224273703,7.56628619,2136.7,2134.8,0.42273553]
[1770224273999,0.468,2136.8,2135.7,0.23451]
[1770224274198,7.56628619,2137.4,2135.7,0.23451]
[1770224274199,7.56628619,2137.4,2135.8,0.40634334]
[1770224274801,7.76945786,2137.3,2135.8,0.40634334]
[1770224275102,6.90271448,2137.2,2135.8,0.40634334]
[1770224275301,0.00415383,2137.2,2135.8,0.40634334]
[1770224275699,7.77361169,2137.2,2135.8,0.40634334]
[1770224276201,14.67632617,2137.2,2135.8,0.40634334]
[1770224276696,14.67632617,2137.2,2135.7,0.23849501]
[1770224276697,6.90271448,2136.8,2135.7,0.00398501]
[1770224276902,6.90271448,2136.4,2135.7,0.00398501]
[1770224277203,6.90271448,2136.5,2135.7,0.00398501]
[1770224277396,6.90271448,2136.4,2135.7,0.00398501]
[1770224277799,6.90271448,2136.2,2135.7,0.00398501]
[1770224277999,6.90271448,2136.4,2135.7,0.00398501]
[1770224278201,0.23441,2136.7,2135.7,0.00398501]
[1770224278404,8.21764221,2140.4,2138.9,1.07715]
[1770224278601,8.21764221,2140.4,2138.3,0.23422]
[1770224278798,8.21764221,2140.4,2137.6,1.07777]
[1770224278799,0.23401,2140.3,2137.8,1.07769]
[1770224279103,0.23401,2140.3,2137.8,1.31198]
[1770224279298,0.00454708,2140.3,2138.0,1.07761]
[1770224279604,0.00454708,2140.3,2138.0,5.00223992]
[1770224279903,0.00454708,2140.3,2138.1,5.00223992]
[1770224280103,0.00454708,2140.3,2138.2,5.00223992]
[1770224280301,0.00454708,2140.3,2138.3,5.13079011]
[1770224280503,40.8,2140.2,2138.3,0.46765029]
[1770224280796,7.76764221,2140.1,2138.3,0.46765029]
[1770224281402,7.76764221,2140.1,2138.5,1.07734]
[1770224281703,7.76764221,2140.1,2138.4,5.13097305]
[1770224281899,7.76764221,2140.1,2138.5,1.07735]
[1770224282098,0.00454708,2140.3,2138.6,0.23419]
[1770224282304,7.77218929,2140.3,2138.6,0.23419]
[1770224282607,7.77218929,2140.3,2138.3,0.46765029]
[1770224283305,7.76764221,2139.8,2138.3,0.46765029]
[1770224283504,1.0765,2140.2,2138.3,0.46765029]
[1770224283505,7.76764221,2139.6,2138.3,0.46765029]
[1770224283704,0.468,2139.7,2138.3,0.46765029]
[1770224284298,8.23564221,2139.7,2138.3,0.46765029]
[1770224285895,7.76764221,2139.5,2137.8,0.00598559]
[1770224286102,8.00180221,2139.0,2137.1,1.56134483]
[1770224286298,7.76764221,2139.0,2137.1,1.56134483]
[1770224286503,7.76764221,2139.0,2137.2,6.41117361]
[1770224286801,7.76764221,2139.0,2137.2,0.23434]
[1770224287202,7.76764221,2139.0,2137.2,0.00478153]
[1770224287400,7.76764221,2139.0,2137.1,1.56134483]
[1770224287604,7.76764221,2139.0,2137.2,0.23434]
[1770224287805,7.76764221,2139.0,2136.8,5.49188058]
[1770224287996,7.76764221,2139.0,2137.2,0.23434]
[1770224288202,7.76764221,2139.0,2136.8,1.07821]
[1770224288401,7.76764221,2139.0,2137.4,0.23432]
[1770224288797,7.76764221,2139.0,2137.6,0.2343]
[1770224289105,7.76764221,2139.4,2137.6,0.2343]
[1770224289307,7.76764221,2139.4,2137.8,0.23428]
[1770224290905,7.76764221,2139.4,2137.4,4.11350675]
[1770224291203,7.76764221,2139.4,2137.4,4.34782675]
[1770224291403,7.76764221,2139.4,2137.5,0.23431]
[1770224291803,7.76764221,2139.2,2137.3,4.11350675]
[1770224292004,7.76764221,2138.9,2137.2,0.468]
[1770224292606,7.76764221,2138.9,2137.2,0.70234]
[1770224293106,8.00181221,2138.9,2137.2,0.468]
[1770224293806,7.76764221,2138.4,2136.8,0.0044602]
[1770224294109,7.76764221,2138.2,2136.8,0.0044602]
[1770224294310,7.76764221,2138.2,2136.9,0.9359]
[1770224295108,7.76764221,2138.2,2136.9,1.17028]
[1770224295604,7.76764221,2138.2,2136.9,0.9359]
[1770224297308,7.76764221,2138.0,2136.9,0.9359]
[1770224299706,0.468,2138.3,2137.2,0.23434]
[1770224299911,0.468,2138.3,2137.1,1.07806]
[1770224300107,0.00341496,2138.4,2137.5,0.23431]
[1770224300415,0.00341496,2138.4,2137.6,0.23429]
[1770224300811,0.00341496,2138.4,2137.1,8.41091073]
[1770224300812,0.00341496,2138.4,2137.4,4.11350675]
[1770224301211,7.77105717,2138.4,2137.5,4.98943889]
[1770224301412,7.77105717,2138.4,2137.3,4.11350675]
[1770224301712,0.00341496,2138.4,2137.4,9.10381194]
[1770224301905,7.76764221,2139.2,2137.9,1.07766]
[1770224302106,7.76764221,2139.6,2138.3,0.23422]
[1770224302310,7.76764221,2139.6,2138.3,9.33803194]
[1770224302506,7.76764221,2139.6,2138.4,9.33801194]
[1770224302711,7.76764221,2139.6,2138.5,4.99030519]
[1770224302918,0.00550384,2139.6,2138.8,4.11350675]
[1770224303216,0.00550384,2139.6,2138.9,4.99030519]
[1770224303410,0.468,2139.8,2139.0,9.10381194]
[1770224303606,8.23564221,2139.8,2138.9,4.11350675]
[1770224303806,8.22725657,2139.8,2138.8,4.11350675]
[1770224304206,8.22725657,2139.8,2138.9,4.11350675]
[1770224304511,8.23108858,2139.8,2138.9,4.11350675]
[1770224304709,0.47183201,2139.8,2139.1,4.11350675]
[1770224305210,8.23108858,2139.8,2139.0,4.11350675]
[1770224305617,8.23108858,2139.8,2138.9,4.11350675]
[1770224306013,8.23108858,2139.8,2138.5,10.98370431]
[1770224306314,8.23108858,2139.8,2138.5,4.11885358]
[1770224307517,8.23108858,2139.8,2138.5,0.00534683]
[1770224307916,8.23108858,2139.8,2138.5,4.11885358]
[1770224308119,8.23108858,2139.8,2138.5,0.00534683]
[1770224308120,7.75925657,2139.6,2138.5,0.00534683]
[1770224308417,7.99333657,2139.6,2138.3,4.11350675]
[1770224308608,7.75925657,2139.4,2138.1,4.11350675]
[1770224308812,7.75925657,2139.4,2137.9,5.56831579]
[1770224309010,7.75925657,2139.4,2137.8,12.35874698]
[1770224309213,0.55321163,2139.8,2137.8,12.35874698]
[1770224309214,7.20979591,2139.2,2137.8,12.36312271]
[1770224309617,7.20979591,2139.2,2137.8,5.49827198]
[1770224309819,7.20979591,2139.2,2137.8,0.00437573]
[1770224310616,7.20979591,2138.9,2137.8,0.00437573]
[1770224310818,7.20979591,2138.7,2137.2,12.82674698]
[1770224311417,7.20979591,2138.7,2137.3,16.53374087]
[1770224311614,7.20979591,2138.7,2137.2,7.33285073]
[1770224311811,7.20979591,2138.7,2137.2,6.87062965]
[1770224312012,7.20979591,2138.7,2137.2,0.00577892]
[1770224312217,1.07766,2137.9,2135.6,3.276]
[1770224312517,2.75577094,2136.7,2135.5,0.37712434]
[1770224312717,2.75577094,2136.4,2135.5,0.37712434]
[1770224312914,3.97805138,2136.3,2135.5,7.06036881]
[1770224313115,3.97805138,2136.2,2135.5,7.06553036]
[1770224313315,0.468,2136.6,2135.8,18.14630675]
[1770224313516,4.03755222,2136.5,2135.9,6.68324447]
[1770224313717,0.468,2136.6,2135.9,0.9363]
[1770224313916,0.468,2136.6,2136.0,6.68324447]
[1770224314219,0.468,2137.0,2136.0,6.68324447]
[1770224314421,4.03214692,2136.9,2136.1,7.64682812]
[1770224314622,0.47365996,2137.0,2136.2,6.68324447]
[1770224314821,0.47365996,2137.0,2136.0,6.68324447]
[1770224315018,0.47365996,2137.0,2136.1,7.75814935]
[1770224315322,0.47365996,2137.0,2136.2,25.9044561]
[1770224315719,0.47365996,2137.0,2136.3,6.68324447]
[1770224315922,0.47365996,2137.0,2136.1,6.68324447]
[1770224316122,41.27365996,2137.0,2136.1,6.68324447]
[1770224316324,41.27365996,2137.0,2136.2,7.75814935]
[1770224317223,0.47365996,2137.0,2136.4,7.74152369]
[1770224317432,0.468,2137.4,2136.5,18.14630675]
[1770224317626,40.8,2137.3,2136.5,6.64999315]
[1770224317830,40.8,2137.3,2136.0,7.74152369]
[1770224318030,40.8,2137.3,2136.1,14.4081425]
[1770224318331,40.80596883,2137.3,2136.1,6.64999315]
[1770224318534,4.02383994,2137.2,2136.1,6.64999315]
[1770224318830,4.02383994,2137.1,2136.1,6.64999315]
[1770224319032,40.80596883,2137.3,2136.1,6.64999315]
[1770224319230,4.02243863,2137.2,2136.1,6.64999315]
[1770224319430,40.80596883,2137.3,2136.0,7.75814935]
[1770224319726,40.80596883,2137.3,2136.0,6.64999315]
[1770224319727,4.02196198,2137.2,2136.0,6.64999315]
[1770224319928,4.02196198,2137.1,2136.0,6.64999315]
[1770224320130,40.80596883,2137.3,2136.1,7.75814935]
[1770224320429,4.02192646,2137.2,2136.1,7.75814935]
[1770224320634,40.80596883,2137.3,2136.1,7.75814935]
[1770224320835,4.02192354,2137.2,2136.2,6.64999315]
[1770224321034,0.00596883,2137.3,2136.3,7.75814935]
[1770224321237,0.468,2137.8,2136.8,7.75814935]
[1770224321536,0.468,2137.7,2136.8,7.75814935]
[1770224321830,0.35270588,2137.7,2136.9,6.64999315]
[1770224322233,0.35812084,2137.7,2136.9,6.64999315]
[1770224322428,4.02541353,2137.6,2136.2,7.75814935]
[1770224322633,4.02541353,2137.5,2136.2,7.75814935]
[1770224322931,0.59241084,2137.7,2136.4,7.47539049]
[1770224323126,4.02588354,2137.6,2136.5,7.47539049]
[1770224323332,0.59241084,2137.7,2136.5,7.47539049]
[1770224323543,4.02508888,2137.6,2136.6,14.12538364]
[1770224323734,0.97525362,2137.7,2136.6,7.47539049]
[1770224323935,0.97525362,2137.7,2136.1,18.14630675]
[1770224323936,0.85145278,2137.5,2136.2,7.47539049]
[1770224324238,0.23433,2137.4,2136.2,7.47539049]
[1770224324439,4.02457498,2137.3,2136.2,7.47539049]
[1770224324631,4.02376646,2137.2,2136.3,6.03286037]
[1770224324835,4.02376646,2137.1,2136.1,13.79100972]
[1770224325036,0.23434,2137.3,2136.1,13.79100972]
[1770224325339,4.02386131,2137.2,2136.1,13.79100972]
[1770224325642,0.23434,2137.3,2136.1,6.03286037]
[1770224325845,4.02293136,2137.2,2136.1,6.03286037]
[1770224326038,0.23434,2137.3,2136.1,13.79100972]
[1770224326238,4.02212723,2137.2,2136.1,13.79100972]
[1770224326539,0.23434,2137.3,2136.1,13.79100972]
[1770224326843,4.02249915,2137.2,2136.1,13.79100972]
[1770224327140,0.23434,2137.3,2136.1,13.79100972]
[1770224327336,0.29239581,2137.1,2136.1,6.03286037]
[1770224327543,4.25378177,2137.0,2136.1,6.03286037]
[1770224327742,0.23437,2137.0,2135.9,0.9363]
[1770224327944,40.8,2136.9,2136.0,6.03286037]
[1770224328144,0.468,2136.8,2136.0,6.03286037]
[1770224328741,0.468,2136.8,2136.2,18.14630675]
[1770224328941,0.468,2136.8,2136.2,25.75276636]
[1770224329141,0.468,2136.8,2136.4,25.75276636]
[1770224329345,0.468,2136.8,2136.6,18.14630675]
[1770224329844,0.46278683,2136.8,2136.7,18.14630675]
[1770224330046,0.46278683,2136.8,2136.6,18.14630675]
[1770224330547,0.46278683,2136.8,2136.7,18.14630675]